[Event "Late-Titled-Tuesday-Blitz-October-10-2023"]
[Site "Chess.com"]
[Date "2023.10.10"]
[Round "4"]
[White "Grischuk"]
[Black "Alex_Sahakyan2006"]
[Result "1-0"]
[WhiteElo "2986"]
[BlackElo "2730"]
[TimeControl "180+1"]
[EndTime "14:34:23 PDT"]
[Termination "Grischuk won by resignation"]

1. d4 {[%clk 0:03:00.9]} 1... Nf6 {[%clk 0:02:59.1]} 2. c4 {[%clk 0:03:00.7]}
2... e6 {[%clk 0:02:59]} 3. Bg5 {[%clk 0:03:00.4]} 3... c5 {[%clk 0:02:55.6]} 4.
d5 {[%clk 0:03:00.4]} 4... exd5 {[%clk 0:02:55.7]} 5. cxd5 {[%clk 0:03:01.3]}
5... d6 {[%clk 0:02:55.7]} 6. e4 {[%clk 0:02:59.6]} 6... g6 {[%clk 0:02:55.2]}
7. Bd3 {[%clk 0:02:44.1]} 7... Bg7 {[%clk 0:02:54.2]} 8. Ne2 {[%clk 0:02:42]}
8... O-O {[%clk 0:02:49.8]} 9. Nec3 {[%clk 0:02:38.1]} 9... Nbd7 {[%clk
0:02:46.2]} 10. O-O {[%clk 0:02:37.1]} 10... a6 {[%clk 0:02:43]} 11. a4 {[%clk
0:02:36.3]} 11... Rb8 {[%clk 0:02:42.8]} 12. Na3 {[%clk 0:02:32.4]} 12... Ne5
{[%clk 0:02:42.5]} 13. Be2 {[%clk 0:02:31.8]} 13... h6 {[%clk 0:02:26.7]} 14.
Bh4 {[%clk 0:02:31.9]} 14... Re8 {[%clk 0:02:19.9]} 15. f4 {[%clk 0:02:28.3]}
15... Ned7 {[%clk 0:02:19.8]} 16. Kh1 {[%clk 0:02:20.8]} 16... Qc7 {[%clk
0:02:10.5]} 17. Qc2 {[%clk 0:02:13.6]} 17... Nf8 {[%clk 0:01:54.2]} 18. Rae1
{[%clk 0:01:59.3]} 18... Ng4 {[%clk 0:01:49.6]} 19. Bxg4 {[%clk 0:01:50.6]}
19... Bxg4 {[%clk 0:01:50.5]} 20. f5 {[%clk 0:01:49.3]} 20... g5 {[%clk
0:01:36.6]} 21. Bg3 {[%clk 0:01:45.7]} 21... Nd7 {[%clk 0:01:31.6]} 22. Nc4
{[%clk 0:01:42.6]} 22... Ne5 {[%clk 0:01:25.4]} 23. Bxe5 {[%clk 0:01:41.1]}
23... Bxe5 {[%clk 0:01:25.1]} 24. Nxe5 {[%clk 0:01:40.3]} 24... Rxe5 {[%clk
0:01:23.6]} 25. h3 {[%clk 0:01:40.7]} 25... Bh5 {[%clk 0:01:22.1]} 26. g4 {[%clk
0:01:40.7]} 26... b5 {[%clk 0:01:19.7]} 27. axb5 {[%clk 0:01:39.4]} 27... axb5
{[%clk 0:01:19.6]} 28. gxh5 {[%clk 0:01:39.6]} 28... b4 {[%clk 0:01:18.8]} 29.
Nd1 {[%clk 0:01:36.4]} 29... c4 {[%clk 0:01:15.9]} 30. Nf2 {[%clk 0:01:36.3]}
30... Kg7 {[%clk 0:01:08.2]} 31. Ng4 {[%clk 0:01:33.5]} 31... Ree8 {[%clk
0:01:08.1]} 32. f6+ {[%clk 0:01:32.9]} 32... Kf8 {[%clk 0:01:08.2]} 33. e5
{[%clk 0:01:31.2]} 1-0

[Event "Late-Titled-Tuesday-Blitz-October-10-2023"]
[Site "Chess.com"]
[Date "2023.10.10"]
[Round "4"]
[White "rdarruda"]
[Black "carloseduar100"]
[Result "1-0"]
[WhiteElo "2507"]
[BlackElo "2325"]
[TimeControl "180+1"]
[EndTime "14:34:31 PDT"]
[Termination "rdarruda won by resignation"]

1. Nf3 {[%clk 0:02:54.6]} 1... Nf6 {[%clk 0:02:58.9]} 2. d4 {[%clk 0:02:54.5]}
2... g6 {[%clk 0:02:59.1]} 3. Nc3 {[%clk 0:02:54.2]} 3... Bg7 {[%clk 0:03:00]}
4. e4 {[%clk 0:02:54.2]} 4... O-O {[%clk 0:03:00.9]} 5. Bg5 {[%clk 0:02:54.1]}
5... d6 {[%clk 0:03:01.6]} 6. Qd2 {[%clk 0:02:53.4]} 6... c5 {[%clk 0:03:02]} 7.
dxc5 {[%clk 0:02:52.3]} 7... dxc5 {[%clk 0:03:02.7]} 8. Qxd8 {[%clk 0:02:51.8]}
8... Rxd8 {[%clk 0:03:03.6]} 9. e5 {[%clk 0:02:52.3]} 9... Ng4 {[%clk
0:02:57.9]} 10. Bxe7 {[%clk 0:02:51.8]} 10... Re8 {[%clk 0:02:58.2]} 11. Bxc5
{[%clk 0:02:52.2]} 11... Nxe5 {[%clk 0:02:57.4]} 12. Nxe5 {[%clk 0:02:52.3]}
12... Rxe5+ {[%clk 0:02:57.7]} 13. Be3 {[%clk 0:02:52.3]} 13... Bh6 {[%clk
0:02:58.6]} 14. O-O-O {[%clk 0:02:51.6]} 14... Bxe3+ {[%clk 0:02:56.3]} 15. fxe3
{[%clk 0:02:52.5]} 15... Nc6 {[%clk 0:02:56.1]} 16. e4 {[%clk 0:02:50.1]} 16...
a6 {[%clk 0:02:48.6]} 17. Bc4 {[%clk 0:02:48]} 17... Bg4 {[%clk 0:02:48.3]} 18.
Rd6 {[%clk 0:02:40.5]} 18... Rc8 {[%clk 0:02:48.5]} 19. Rf1 {[%clk 0:02:36.6]}
19... Nd8 {[%clk 0:02:38.6]} 20. Bd5 {[%clk 0:02:35.3]} 20... Be6 {[%clk
0:02:36.9]} 21. Bxe6 {[%clk 0:02:21.5]} 21... Nxe6 {[%clk 0:02:37]} 22. Rd7
{[%clk 0:02:15.5]} 22... Rf8 {[%clk 0:02:23.6]} 23. Rxb7 {[%clk 0:02:09.5]}
23... Nc5 {[%clk 0:02:24.2]} 24. Rb4 {[%clk 0:01:53.7]} 24... Rfe8 {[%clk
0:02:20.2]} 25. Kd2 {[%clk 0:01:38.6]} 25... Nxe4+ {[%clk 0:02:17.2]} 26. Nxe4
{[%clk 0:01:39.5]} 26... Rxe4 {[%clk 0:02:17.2]} 27. Rxe4 {[%clk 0:01:39.6]}
27... Rxe4 {[%clk 0:02:18.1]} 28. Kd3 {[%clk 0:01:37]} 28... Rg4 {[%clk
0:02:18.2]} 29. g3 {[%clk 0:01:35.7]} 29... Kf8 {[%clk 0:02:18.4]} 30. Re1
{[%clk 0:01:32]} 30... Rg5 {[%clk 0:02:17.1]} 31. c4 {[%clk 0:01:31.6]} 31...
Rf5 {[%clk 0:02:14.8]} 32. b4 {[%clk 0:01:27.9]} 32... Rf2 {[%clk 0:02:14.9]}
33. Re2 {[%clk 0:01:28]} 33... Rf1 {[%clk 0:02:15.6]} 34. c5 {[%clk 0:01:27.1]}
34... Rc1 {[%clk 0:02:14.2]} 35. Rc2 {[%clk 0:01:22.1]} 35... Rxc2 {[%clk
0:02:01.2]} 36. Kxc2 {[%clk 0:01:21.7]} 36... Ke7 {[%clk 0:02:02.1]} 37. a4
{[%clk 0:01:21]} 37... f5 {[%clk 0:02:01.9]} 38. b5 {[%clk 0:01:20]} 38... axb5
{[%clk 0:02:01.9]} 39. axb5 {[%clk 0:01:20.9]} 39... Ke6 {[%clk 0:02:02.7]} 40.
b6 {[%clk 0:01:20.4]} 40... Kd7 {[%clk 0:02:03.3]} 41. b7 {[%clk 0:01:20.2]}
41... Kc7 {[%clk 0:02:03.8]} 42. c6 {[%clk 0:01:20.6]} 42... g5 {[%clk
0:02:04.4]} 43. Kd3 {[%clk 0:01:20.7]} 1-0

[Event "Late-Titled-Tuesday-Blitz-October-10-2023"]
[Site "Chess.com"]
[Date "2023.10.10"]
[Round "4"]
[White "Vamostodorecto"]
[Black "Alina_Gumerovna"]
[Result "1-0"]
[WhiteElo "2436"]
[BlackElo "2139"]
[TimeControl "180+1"]
[EndTime "14:34:43 PDT"]
[Termination "Vamostodorecto won by resignation"]

1. d4 {[%clk 0:02:52.5]} 1... d5 {[%clk 0:02:58]} 2. c4 {[%clk 0:02:46.5]} 2...
dxc4 {[%clk 0:02:56.9]} 3. e4 {[%clk 0:02:44.7]} 3... Nf6 {[%clk 0:02:53.6]} 4.
e5 {[%clk 0:02:43.5]} 4... Nd5 {[%clk 0:02:52.2]} 5. Bxc4 {[%clk 0:02:44.1]}
5... Nc6 {[%clk 0:02:50.4]} 6. Nf3 {[%clk 0:02:44.4]} 6... Bg4 {[%clk
0:02:49.6]} 7. Be3 {[%clk 0:02:36.3]} 7... e6 {[%clk 0:02:45.1]} 8. O-O {[%clk
0:02:34.6]} 8... Be7 {[%clk 0:02:44.2]} 9. Nc3 {[%clk 0:02:26]} 9... Nxe3 {[%clk
0:02:40.3]} 10. fxe3 {[%clk 0:02:26.8]} 10... O-O {[%clk 0:02:40.8]} 11. Rc1
{[%clk 0:02:09.8]} 11... Bg5 {[%clk 0:02:39.8]} 12. Qd3 {[%clk 0:02:07.2]} 12...
Nb4 {[%clk 0:02:38.3]} 13. Qe2 {[%clk 0:01:58.9]} 13... c6 {[%clk 0:02:35.4]}
14. Ne4 {[%clk 0:01:55.3]} 14... Bh6 {[%clk 0:02:31.9]} 15. h3 {[%clk
0:01:50.8]} 15... Bh5 {[%clk 0:02:23.4]} 16. g4 {[%clk 0:01:47]} 16... Bg6
{[%clk 0:02:22.3]} 17. Nd6 {[%clk 0:01:42.4]} 17... b5 {[%clk 0:02:21.7]} 18.
Bb3 {[%clk 0:01:39.4]} 18... Bd3 {[%clk 0:02:19.3]} 19. Qd2 {[%clk 0:01:30.9]}
19... Bxf1 {[%clk 0:02:18.5]} 20. Rxf1 {[%clk 0:01:31.7]} 20... Nd5 {[%clk
0:02:16.7]} 21. Bxd5 {[%clk 0:01:24.2]} 21... exd5 {[%clk 0:02:14.8]} 22. Rc1
{[%clk 0:01:13]} 22... Qd7 {[%clk 0:02:00.7]} 23. Nf5 {[%clk 0:01:03.8]} 23...
Qe6 {[%clk 0:01:49]} 24. Rxc6 {[%clk 0:01:02.4]} 24... Qd7 {[%clk 0:01:41.1]}
25. Rd6 {[%clk 0:00:59.1]} 25... Qb7 {[%clk 0:01:34.2]} 26. g5 {[%clk
0:00:56.8]} 1-0

[Event "Late-Titled-Tuesday-Blitz-October-10-2023"]
[Site "Chess.com"]
[Date "2023.10.10"]
[Round "4"]
[White "santosalberto1987"]
[Black "annacramling"]
[Result "1-0"]
[WhiteElo "2456"]
[BlackElo "2212"]
[TimeControl "180+1"]
[EndTime "14:34:48 PDT"]
[Termination "santosalberto1987 won on time"]

1. e4 {[%clk 0:03:00.9]} 1... c5 {[%clk 0:03:00.2]} 2. Nf3 {[%clk 0:03:00.9]}
2... e6 {[%clk 0:02:59.6]} 3. g3 {[%clk 0:03:00.7]} 3... d5 {[%clk 0:02:59.4]}
4. exd5 {[%clk 0:03:00.4]} 4... exd5 {[%clk 0:03:00.3]} 5. d4 {[%clk 0:03:00.6]}
5... Nf6 {[%clk 0:02:59.7]} 6. Bg2 {[%clk 0:03:00.7]} 6... Nc6 {[%clk
0:03:00.3]} 7. O-O {[%clk 0:02:59.6]} 7... Be7 {[%clk 0:03:00.9]} 8. dxc5 {[%clk
0:02:59.8]} 8... O-O {[%clk 0:03:01]} 9. Be3 {[%clk 0:02:57.1]} 9... Bg4 {[%clk
0:02:55.1]} 10. c3 {[%clk 0:02:53.7]} 10... Ne5 {[%clk 0:02:50.5]} 11. Nbd2
{[%clk 0:02:52.9]} 11... Ne4 {[%clk 0:02:45.8]} 12. Nxe4 {[%clk 0:02:50.4]}
12... Bxf3 {[%clk 0:02:13.1]} 13. Bxf3 {[%clk 0:02:48.2]} 13... dxe4 {[%clk
0:01:46.1]} 14. Bxe4 {[%clk 0:02:49.1]} 14... Qc7 {[%clk 0:01:34.9]} 15. b4
{[%clk 0:02:45]} 15... Rad8 {[%clk 0:01:34.2]} 16. Qc2 {[%clk 0:02:43.2]} 16...
f5 {[%clk 0:01:25.6]} 17. Bg2 {[%clk 0:02:40.4]} 17... Ng4 {[%clk 0:00:55.6]}
18. Bd4 {[%clk 0:02:38.3]} 18... f4 {[%clk 0:00:54.4]} 19. Be4 {[%clk
0:02:27.7]} 19... fxg3 {[%clk 0:00:22.9]} 20. Bxh7+ {[%clk 0:02:21.3]} 20... Kh8
{[%clk 0:00:22.9]} 21. hxg3 {[%clk 0:02:21.6]} 21... Rf3 {[%clk 0:00:18.2]} 22.
Be4 {[%clk 0:02:13.5]} 22... Rxg3+ {[%clk 0:00:10.1]} 23. fxg3 {[%clk
0:02:13.2]} 23... Qxg3+ {[%clk 0:00:06.8]} 24. Qg2 {[%clk 0:02:12.8]} 24... Qh4
{[%clk 0:00:05.5]} 25. Rf4 {[%clk 0:02:07.3]} 25... Rxd4 {[%clk 0:00:02.6]} 26.
Rxg4 {[%clk 0:02:02.4]} 26... Qf6 {[%clk 0:00:02.3]} 27. Rf1 {[%clk 0:01:57.1]}
1-0

[Event "Late-Titled-Tuesday-Blitz-October-10-2023"]
[Site "Chess.com"]
[Date "2023.10.10"]
[Round "4"]
[White "SHIVACalypso"]
[Black "nitpicker"]
[Result "1-0"]
[WhiteElo "2451"]
[BlackElo "2267"]
[TimeControl "180+1"]
[EndTime "14:34:54 PDT"]
[Termination "SHIVACalypso won by checkmate"]

1. d4 {[%clk 0:03:00.9]} 1... Nf6 {[%clk 0:02:59.5]} 2. c4 {[%clk 0:03:00.3]}
2... e6 {[%clk 0:02:59.5]} 3. Nc3 {[%clk 0:02:59.7]} 3... Bb4 {[%clk 0:02:58.2]}
4. Qc2 {[%clk 0:02:59.6]} 4... d5 {[%clk 0:02:55.2]} 5. Nf3 {[%clk 0:02:59]}
5... O-O {[%clk 0:02:53.6]} 6. Bg5 {[%clk 0:02:57.8]} 6... Nbd7 {[%clk
0:02:46.5]} 7. e3 {[%clk 0:02:56.9]} 7... b6 {[%clk 0:02:45.4]} 8. Bd3 {[%clk
0:02:55.7]} 8... h6 {[%clk 0:02:43.9]} 9. Bh4 {[%clk 0:02:55.2]} 9... Bb7 {[%clk
0:02:42.9]} 10. O-O {[%clk 0:02:54.4]} 10... Be7 {[%clk 0:02:40.8]} 11. Rfe1
{[%clk 0:02:50.5]} 11... c5 {[%clk 0:02:36.1]} 12. Rad1 {[%clk 0:02:46.1]} 12...
Rc8 {[%clk 0:02:34.7]} 13. b3 {[%clk 0:02:43.4]} 13... cxd4 {[%clk 0:02:19.8]}
14. Nxd4 {[%clk 0:02:41]} 14... Bb4 {[%clk 0:02:14.1]} 15. e4 {[%clk 0:02:33.2]}
15... e5 {[%clk 0:02:07.2]} 16. Nf5 {[%clk 0:02:27.5]} 16... d4 {[%clk
0:02:02.1]} 17. Nd5 {[%clk 0:02:23.9]} 17... Bxd5 {[%clk 0:01:58.9]} 18. exd5
{[%clk 0:02:22.5]} 18... Bxe1 {[%clk 0:01:58.5]} 19. Rxe1 {[%clk 0:02:21.2]}
19... b5 {[%clk 0:01:29.8]} 20. d6 {[%clk 0:02:04.7]} 20... bxc4 {[%clk
0:01:19.3]} 21. bxc4 {[%clk 0:02:05.6]} 21... Qa5 {[%clk 0:01:09.5]} 22. Ne7+
{[%clk 0:02:03.5]} 22... Kh8 {[%clk 0:01:08.5]} 23. f4 {[%clk 0:02:00.9]} 23...
Rb8 {[%clk 0:00:58.3]} 24. fxe5 {[%clk 0:01:55.6]} 24... Nxe5 {[%clk 0:00:53.8]}
25. Rf1 {[%clk 0:01:54.9]} 25... Qc3 {[%clk 0:00:47.2]} 26. Rxf6 {[%clk
0:01:35.9]} 26... Qxc2 {[%clk 0:00:42.1]} 27. Rxh6+ {[%clk 0:01:26.8]} 27...
gxh6 {[%clk 0:00:25.1]} 28. Bf6# {[%clk 0:01:26.4]} 1-0

[Event "Late-Titled-Tuesday-Blitz-October-10-2023"]
[Site "Chess.com"]
[Date "2023.10.10"]
[Round "4"]
[White "Djager97"]
[Black "Defenstrator"]
[Result "1-0"]
[WhiteElo "2625"]
[BlackElo "2403"]
[TimeControl "180+1"]
[EndTime "14:35:07 PDT"]
[Termination "Djager97 won by resignation"]

1. e4 {[%clk 0:03:00.9]} 1... Nc6 {[%clk 0:02:43.7]} 2. d4 {[%clk 0:03:00.3]}
2... d5 {[%clk 0:02:43.5]} 3. e5 {[%clk 0:02:56.4]} 3... f6 {[%clk 0:02:32.5]}
4. Bb5 {[%clk 0:02:54.1]} 4... fxe5 {[%clk 0:02:26.9]} 5. Qh5+ {[%clk
0:02:39.4]} 5... g6 {[%clk 0:02:27.2]} 6. Qxe5 {[%clk 0:02:39.7]} 6... Nf6
{[%clk 0:02:26]} 7. Nf3 {[%clk 0:02:21.7]} 7... Bg7 {[%clk 0:02:15.8]} 8. Bxc6+
{[%clk 0:02:20.6]} 8... bxc6 {[%clk 0:02:15.9]} 9. Nc3 {[%clk 0:01:45.7]} 9...
O-O {[%clk 0:02:10]} 10. Qe2 {[%clk 0:01:44.7]} 10... Bg4 {[%clk 0:02:02.1]} 11.
Be3 {[%clk 0:01:44]} 11... c5 {[%clk 0:01:39.1]} 12. O-O-O {[%clk 0:01:40.8]}
12... Kh8 {[%clk 0:01:16.6]} 13. h3 {[%clk 0:01:31.9]} 13... Bxf3 {[%clk
0:01:16.5]} 14. gxf3 {[%clk 0:01:31]} 14... c4 {[%clk 0:01:11.7]} 15. Bf4 {[%clk
0:01:24.5]} 15... c6 {[%clk 0:01:01.5]} 16. Rhe1 {[%clk 0:01:23.1]} 16... Ne4
{[%clk 0:00:54.7]} 17. fxe4 {[%clk 0:01:19.8]} 17... Rxf4 {[%clk 0:00:55.4]} 18.
exd5 {[%clk 0:01:19.3]} 18... cxd5 {[%clk 0:00:53.8]} 19. Qxe7 {[%clk
0:01:18.8]} 19... Qxe7 {[%clk 0:00:49.6]} 20. Rxe7 {[%clk 0:01:17.8]} 20... Rxd4
{[%clk 0:00:46.3]} 21. Rxd4 {[%clk 0:01:12]} 21... Bxd4 {[%clk 0:00:46.6]} 22.
Nxd5 {[%clk 0:01:12.9]} 22... Bxf2 {[%clk 0:00:44.8]} 23. Nf6 {[%clk 0:01:09.4]}
23... Be3+ {[%clk 0:00:33.9]} 24. Kb1 {[%clk 0:01:08.8]} 1-0

[Event "Late-Titled-Tuesday-Blitz-October-10-2023"]
[Site "Chess.com"]
[Date "2023.10.10"]
[Round "4"]
[White "Chesstrainer1"]
[Black "German_Bazeev"]
[Result "0-1"]
[WhiteElo "2469"]
[BlackElo "2804"]
[TimeControl "180+1"]
[EndTime "14:35:10 PDT"]
[Termination "German_Bazeev won by resignation"]

1. e4 {[%clk 0:02:55.8]} 1... g6 {[%clk 0:02:59.5]} 2. d4 {[%clk 0:02:55.3]}
2... Bg7 {[%clk 0:03:00.2]} 3. Nc3 {[%clk 0:02:50.6]} 3... d6 {[%clk 0:03:00.7]}
4. Be3 {[%clk 0:02:40.6]} 4... Nd7 {[%clk 0:03:00.8]} 5. h4 {[%clk 0:02:34.3]}
5... h5 {[%clk 0:03:00.5]} 6. Qd2 {[%clk 0:02:31.7]} 6... c6 {[%clk 0:03:00.7]}
7. Nh3 {[%clk 0:02:26.8]} 7... b5 {[%clk 0:03:01.3]} 8. a3 {[%clk 0:02:26.3]}
8... Nb6 {[%clk 0:03:01.2]} 9. b3 {[%clk 0:02:15.8]} 9... Bxh3 {[%clk
0:03:00.9]} 10. Rxh3 {[%clk 0:02:15.1]} 10... Nf6 {[%clk 0:03:01.8]} 11. f3
{[%clk 0:02:13.2]} 11... a5 {[%clk 0:02:58.8]} 12. a4 {[%clk 0:02:12.9]} 12...
b4 {[%clk 0:02:58.8]} 13. Nd1 {[%clk 0:01:59.5]} 13... O-O {[%clk 0:02:59.2]}
14. Bh6 {[%clk 0:01:52.4]} 14... c5 {[%clk 0:02:59.8]} 15. dxc5 {[%clk
0:01:37.3]} 15... dxc5 {[%clk 0:02:59]} 16. Bxg7 {[%clk 0:01:35.5]} 16... Kxg7
{[%clk 0:02:54]} 17. Ne3 {[%clk 0:01:22.2]} 17... Qxd2+ {[%clk 0:02:48.6]} 18.
Kxd2 {[%clk 0:01:23.1]} 18... Rfd8+ {[%clk 0:02:49.2]} 19. Bd3 {[%clk
0:01:22.5]} 19... c4 {[%clk 0:02:49.9]} 20. bxc4 {[%clk 0:01:20]} 20... Nfd7
{[%clk 0:02:49.8]} 21. Nd5 {[%clk 0:01:14.2]} 21... e6 {[%clk 0:02:44.5]} 22.
Nxb6 {[%clk 0:00:38.9]} 22... Nxb6 {[%clk 0:02:45.4]} 23. c5 {[%clk 0:00:39.2]}
23... Nd7 {[%clk 0:02:45.2]} 24. c6 {[%clk 0:00:34.3]} 24... Ne5 {[%clk
0:02:45.5]} 25. c7 {[%clk 0:00:30.3]} 25... Rd7 {[%clk 0:02:45.8]} 26. f4 {[%clk
0:00:20.8]} 26... Ng4 {[%clk 0:02:45.8]} 27. Ke2 {[%clk 0:00:17.8]} 27... Rxc7
{[%clk 0:02:45.5]} 28. e5 {[%clk 0:00:17.8]} 28... Rd8 {[%clk 0:02:42.6]} 29.
Rb1 {[%clk 0:00:17.5]} 29... Rd4 {[%clk 0:02:42.6]} 30. Rf3 {[%clk 0:00:16.5]}
30... Nh6 {[%clk 0:02:37.9]} 31. g3 {[%clk 0:00:15.8]} 31... Nf5 {[%clk
0:02:38.2]} 32. Bxf5 {[%clk 0:00:15.9]} 32... gxf5 {[%clk 0:02:38.4]} 33. Rb2
{[%clk 0:00:14.9]} 33... Rcd7 {[%clk 0:02:34.6]} 34. Rd3 {[%clk 0:00:14.6]}
34... Rxd3 {[%clk 0:02:35.2]} 35. cxd3 {[%clk 0:00:15]} 35... Rc7 {[%clk
0:02:35.2]} 36. Kd2 {[%clk 0:00:15.3]} 36... Kf8 {[%clk 0:02:35.1]} 37. Rc2
{[%clk 0:00:14]} 37... Rxc2+ {[%clk 0:02:34.8]} 38. Kxc2 {[%clk 0:00:14.9]}
38... Ke7 {[%clk 0:02:35.4]} 39. Kb3 {[%clk 0:00:15.8]} 39... Kd7 {[%clk
0:02:35.5]} 40. Kc4 {[%clk 0:00:16.7]} 40... Kc6 {[%clk 0:02:36]} 41. d4 {[%clk
0:00:17.1]} 41... Kb6 {[%clk 0:02:36.6]} 42. Kb3 {[%clk 0:00:14.2]} 42... Kb7
{[%clk 0:02:36.7]} 43. Kc2 {[%clk 0:00:14.2]} 43... Kc6 {[%clk 0:02:36.9]} 44.
Kd2 {[%clk 0:00:11]} 44... Kd5 {[%clk 0:02:34.7]} 45. Kd3 {[%clk 0:00:11.9]}
45... b3 {[%clk 0:02:31.6]} 46. Kc3 {[%clk 0:00:12.3]} 46... b2 {[%clk
0:02:28.2]} 47. Kxb2 {[%clk 0:00:12.9]} 47... Kxd4 {[%clk 0:02:28.5]} 48. Kb3
{[%clk 0:00:11.5]} 48... Kd3 {[%clk 0:02:29.1]} 49. Kb2 {[%clk 0:00:11.2]} 49...
Ke3 {[%clk 0:02:29.8]} 50. Kc3 {[%clk 0:00:11.1]} 50... Kf3 {[%clk 0:02:30.5]}
51. Kc4 {[%clk 0:00:11.2]} 51... Kxg3 {[%clk 0:02:31.2]} 52. Kb5 {[%clk
0:00:11.6]} 52... Kxh4 {[%clk 0:02:31]} 53. Kxa5 {[%clk 0:00:12.5]} 53... Kg3
{[%clk 0:02:31.6]} 54. Kb6 {[%clk 0:00:11.2]} 54... h4 {[%clk 0:02:32.3]} 0-1

[Event "Late-Titled-Tuesday-Blitz-October-10-2023"]
[Site "Chess.com"]
[Date "2023.10.10"]
[Round "4"]
[White "SpeedofLight0"]
[Black "Binary010"]
[Result "1-0"]
[WhiteElo "3020"]
[BlackElo "2835"]
[TimeControl "180+1"]
[EndTime "14:35:15 PDT"]
[Termination "SpeedofLight0 won by resignation"]

1. c4 {[%clk 0:03:00.9]} 1... c5 {[%clk 0:02:59.3]} 2. g3 {[%clk 0:03:00.7]}
2... g6 {[%clk 0:02:59.2]} 3. Bg2 {[%clk 0:03:00.7]} 3... Bg7 {[%clk 0:02:59.6]}
4. Nc3 {[%clk 0:03:00.1]} 4... Nc6 {[%clk 0:02:59.9]} 5. d3 {[%clk 0:03:00.1]}
5... d6 {[%clk 0:02:57]} 6. Qd2 {[%clk 0:03:00.3]} 6... Nf6 {[%clk 0:02:42.8]}
7. b3 {[%clk 0:02:59.9]} 7... O-O {[%clk 0:02:43.1]} 8. Bb2 {[%clk 0:03:00]}
8... a6 {[%clk 0:02:42.2]} 9. e3 {[%clk 0:02:58.9]} 9... Rb8 {[%clk 0:02:42]}
10. Nge2 {[%clk 0:02:59.3]} 10... Bd7 {[%clk 0:02:39.9]} 11. O-O {[%clk
0:02:58.5]} 11... b5 {[%clk 0:02:38.8]} 12. Nd5 {[%clk 0:02:57.9]} 12... e6
{[%clk 0:02:32.2]} 13. Nxf6+ {[%clk 0:02:49.6]} 13... Bxf6 {[%clk 0:02:32.9]}
14. cxb5 {[%clk 0:02:49]} 14... axb5 {[%clk 0:02:31.1]} 15. d4 {[%clk
0:02:49.6]} 15... cxd4 {[%clk 0:02:17.1]} 16. Nxd4 {[%clk 0:02:48.8]} 16... Nxd4
{[%clk 0:02:17.1]} 17. Bxd4 {[%clk 0:02:48.9]} 17... d5 {[%clk 0:02:17.4]} 18.
a4 {[%clk 0:02:47.6]} 18... bxa4 {[%clk 0:02:13.1]} 19. bxa4 {[%clk 0:02:48.5]}
19... Bxd4 {[%clk 0:02:10.6]} 20. Qxd4 {[%clk 0:02:49.4]} 20... Qa5 {[%clk
0:02:09.3]} 21. e4 {[%clk 0:02:38.6]} 21... Rb4 {[%clk 0:02:00.6]} 22. Qe5
{[%clk 0:02:37.5]} 22... Rxa4 {[%clk 0:01:47.5]} 23. exd5 {[%clk 0:02:37]} 23...
Rxa1 {[%clk 0:01:30.3]} 24. Rxa1 {[%clk 0:02:37.9]} 24... Qc5 {[%clk 0:01:30.1]}
25. h4 {[%clk 0:02:33.3]} 25... h5 {[%clk 0:01:16.8]} 26. Ra6 {[%clk 0:02:23.5]}
26... Re8 {[%clk 0:01:07.6]} 27. Qg5 {[%clk 0:02:04.4]} 27... exd5 {[%clk
0:00:44.3]} 28. Bxd5 {[%clk 0:02:03.4]} 28... Kg7 {[%clk 0:00:44.2]} 29. Qf6+
{[%clk 0:01:53.4]} 29... Kh6 {[%clk 0:00:42.4]} 30. Qxf7 {[%clk 0:01:40.5]}
30... Re1+ {[%clk 0:00:37.2]} 31. Kg2 {[%clk 0:01:38]} 31... Bh3+ {[%clk
0:00:19.9]} 32. Kxh3 {[%clk 0:01:27.2]} 32... Qc8+ {[%clk 0:00:20]} 33. Kg2
{[%clk 0:01:21.5]} 1-0

[Event "Late-Titled-Tuesday-Blitz-October-10-2023"]
[Site "Chess.com"]
[Date "2023.10.10"]
[Round "4"]
[White "emeli_chess"]
[Black "aNaartjieZA"]
[Result "0-1"]
[WhiteElo "2393"]
[BlackElo "2550"]
[TimeControl "180+1"]
[EndTime "14:35:20 PDT"]
[Termination "aNaartjieZA won on time"]

1. d4 {[%clk 0:03:00.9]} 1... Nf6 {[%clk 0:02:58.5]} 2. c4 {[%clk 0:03:01]} 2...
c5 {[%clk 0:02:58.8]} 3. d5 {[%clk 0:03:00.8]} 3... e5 {[%clk 0:02:59.2]} 4. Nc3
{[%clk 0:02:59.9]} 4... d6 {[%clk 0:02:59.6]} 5. e4 {[%clk 0:03:00.3]} 5... Nbd7
{[%clk 0:03:00.1]} 6. Nf3 {[%clk 0:02:56.5]} 6... Be7 {[%clk 0:03:00.6]} 7. Bd3
{[%clk 0:02:53.1]} 7... Nf8 {[%clk 0:03:00.6]} 8. h3 {[%clk 0:02:52.6]} 8... Ng6
{[%clk 0:02:59.5]} 9. g4 {[%clk 0:02:45.5]} 9... h6 {[%clk 0:02:59.6]} 10. Be3
{[%clk 0:02:39.1]} 10... Nh7 {[%clk 0:02:59.4]} 11. Qd2 {[%clk 0:02:34.1]} 11...
Ng5 {[%clk 0:02:59.4]} 12. Be2 {[%clk 0:02:08.2]} 12... Nxf3+ {[%clk 0:02:58.4]}
13. Bxf3 {[%clk 0:02:08]} 13... Bg5 {[%clk 0:02:55]} 14. O-O-O {[%clk
0:02:06.4]} 14... a6 {[%clk 0:02:54.3]} 15. Kb1 {[%clk 0:02:04.8]} 15... Rb8
{[%clk 0:02:53.8]} 16. Be2 {[%clk 0:02:00.8]} 16... Bd7 {[%clk 0:02:52.7]} 17.
Bd3 {[%clk 0:01:28.2]} 17... b5 {[%clk 0:02:51.3]} 18. Ne2 {[%clk 0:01:28.2]}
18... Qb6 {[%clk 0:02:40.3]} 19. Ng3 {[%clk 0:01:26.3]} 19... Nf4 {[%clk
0:02:35.8]} 20. Bxf4 {[%clk 0:01:18.5]} 20... exf4 {[%clk 0:02:25.1]} 21. Nf5
{[%clk 0:01:16.4]} 21... Bxf5 {[%clk 0:02:22.4]} 22. gxf5 {[%clk 0:01:10.8]}
22... Bf6 {[%clk 0:02:22.4]} 23. cxb5 {[%clk 0:01:05.9]} 23... axb5 {[%clk
0:02:20.7]} 24. Qxf4 {[%clk 0:01:03.8]} 24... c4 {[%clk 0:02:20]} 25. Bc2 {[%clk
0:00:57]} 25... Ra8 {[%clk 0:02:17.8]} 26. Qe3 {[%clk 0:00:48.3]} 26... Qa5
{[%clk 0:02:15.5]} 27. a3 {[%clk 0:00:46.9]} 27... b4 {[%clk 0:02:15.7]} 28. f4
{[%clk 0:00:22.2]} 28... Bxb2 {[%clk 0:02:12.2]} 29. a4 {[%clk 0:00:17.2]} 29...
Bc3 {[%clk 0:02:03.4]} 30. e5 {[%clk 0:00:13.2]} 30... dxe5 {[%clk 0:01:54.7]}
31. fxe5 {[%clk 0:00:10.2]} 31... b3 {[%clk 0:01:54.9]} 32. e6 {[%clk
0:00:09.2]} 32... O-O {[%clk 0:01:54.1]} 33. f6 {[%clk 0:00:05.9]} 33... Bxf6
{[%clk 0:01:45.2]} 0-1